bitfinex/quotes_SOLUSD_20250814
["timestamp","ask_amount","ask_price","bid_price","bid_amount"]
[1755175580125,5.37998997,197.0,196.86,0.69]
[1755175580424,26.0,196.97,196.81,10.0]
[1755175580594,26.0,196.92,196.77,0.03]
[1755175580794,0.66,196.91,196.77,0.03]
[1755175581411,0.66,196.91,196.82,10.0]
[1755175581613,26.0,196.92,196.83,10.0]
[1755175581813,26.0,196.92,196.81,10.0]
[1755175582022,26.0,196.92,196.83,10.0]
[1755175582521,26.0,196.92,196.77,0.03]
[1755175582522,0.05,197.0,196.94,10.0]
[1755175582726,0.05,197.0,196.93,10.0]
[1755175582915,0.05,197.0,196.89,10.52]
[1755175583105,0.05,197.0,196.97,10.0]
[1755175583423,0.05,197.0,196.97,0.69]
[1755175583623,0.05,197.0,196.96,10.0]
[1755175583923,0.1,197.2,197.09,10.0]
[1755175584115,0.1,197.2,197.15,10.0]
[1755175584293,0.1,197.2,197.19,10.0]
[1755175584495,0.1,197.2,197.19,26.22204172]
[1755175584727,0.1,197.2,197.19,0.69]
[1755175584906,0.1,197.2,197.19,10.0]
[1755175585229,0.1,197.2,197.19,10.69]
[1755175585399,3.79955744,197.4,197.33,10.0]
[1755175585603,3.79955744,197.4,197.22,0.14216157]
[1755175585604,4.461389,197.36,197.32,10.0]
[1755175585809,4.461389,197.36,197.27,10.0]
[1755175586017,4.461389,197.36,197.28,10.0]
[1755175586321,1.51983383,197.39,197.32,10.0]
[1755175586717,0.06,197.41,197.28,10.0]
[1755175586914,0.06,197.41,197.38,10.0]
[1755175587436,0.06,197.41,197.4,10.0]
[1755175587597,0.06,197.41,197.38,10.0]
[1755175587935,26.66,197.4,197.24,10.69]
[1755175588229,0.80216157,197.39,197.24,10.0]
[1755175588396,0.06,197.41,197.34,10.0]
[1755175588597,0.06,197.41,197.31,10.0]
[1755175588923,0.06,197.41,197.33,10.0]
[1755175589112,0.06,197.41,197.35,10.0]
[1755175589294,0.06,197.41,197.36,10.0]
[1755175589501,0.06,197.41,197.37,10.0]
[1755175590033,0.06,197.41,197.39,10.0]
[1755175590207,0.06,197.41,197.4,10.0]
[1755175590609,0.06,197.41,197.4,10.69]
[1755175590848,0.06,197.41,197.39,10.0]
[1755175591029,0.06,197.41,197.35,0.71]
[1755175591318,0.06,197.41,197.32,10.0]
[1755175591523,0.76,197.41,197.24,10.0]
[1755175591706,0.76,197.41,197.29,10.0]
[1755175591916,0.76,197.41,197.24,0.71]
[1755175591917,0.76,197.41,197.24,10.71]
[1755175592112,0.21324235,197.27,196.92,0.74]
[1755175592314,10.0,197.15,196.92,0.03]
[1755175592632,12.93759511,197.1,196.92,0.03]
[1755175592815,26.0,197.07,196.92,0.03]
[1755175593003,0.14216157,197.05,196.92,0.03]
[1755175593329,0.5071251,197.04,196.92,0.03]
[1755175593530,0.5071251,197.04,196.88,0.03]
[1755175593531,26.0,197.01,196.88,0.03]
[1755175593712,0.5071251,197.0,196.88,0.03]
[1755175594029,0.5071251,197.0,196.88,1e-08]
[1755175594030,26.0,196.97,196.88,1e-08]
[1755175594340,0.5071251,196.96,196.88,1e-08]
[1755175594826,1.52276534,197.01,196.89,15.53204172]
[1755175595029,1.52276534,197.01,196.9,15.53204172]
[1755175595254,0.5071251,197.0,196.91,0.71]
[1755175595560,0.5071251,196.99,196.88,1e-08]
[1755175595851,0.7,196.98,196.88,1e-08]
[1755175596038,0.5071251,196.97,196.88,1e-08]
[1755175596421,0.5071251,196.97,196.88,0.71000001]
[1755175596619,2.030921,196.98,196.89,15.53204172]
[1755175596925,0.5071251,197.02,196.9,0.14216157]
[1755175597245,0.7,197.01,196.88,1e-08]
[1755175597451,0.5071251,197.0,196.88,1e-08]
[1755175597646,26.0,196.98,196.88,1e-08]
[1755175598044,3.804971,197.01,196.89,0.71]
[1755175598247,1.5222778,197.08,196.89,0.71]
[1755175598248,1.52210388,197.1,196.92,15.53204172]
[1755175598437,0.5071251,197.09,196.9,0.14216157]
[1755175598752,15.224176,197.05,196.91,0.71]
[1755175598928,26.0,197.02,196.88,1e-08]
[1755175599129,0.5071251,197.01,196.88,1e-08]
[1755175599533,0.7,197.0,196.88,1e-08]
[1755175599845,0.5071251,196.99,196.88,1e-08]
[1755175600044,0.84216157,196.98,196.88,1e-08]
[1755175600219,0.5071251,196.97,196.88,1e-08]
[1755175600842,0.5071251,197.01,196.88,1e-08]
[1755175601040,2.02994312,197.01,196.88,1e-08]
[1755175601237,0.7,197.0,196.88,1e-08]
[1755175601437,0.14216157,196.98,196.88,1e-08]
[1755175601646,0.5071251,196.97,196.88,1e-08]
[1755175602034,0.5071251,196.99,196.88,1e-08]
[1755175602441,0.14216157,196.98,196.88,1e-08]
[1755175602641,1.2071251,196.97,196.88,1e-08]
[1755175602852,0.14216157,196.95,196.88,1e-08]
[1755175603158,26.14216157,196.93,196.88,1e-08]
[1755175603326,0.5071251,196.92,196.88,1e-08]
[1755175604054,0.5071251,196.95,196.88,1e-08]
[1755175604239,0.7,196.94,196.88,1e-08]
[1755175604443,26.5071251,196.93,196.88,1e-08]
[1755175604646,0.7,196.92,196.88,1e-08]
[1755175604852,1.52361604,196.9,196.88,1e-08]
[1755175605047,1.2071251,196.89,196.88,1e-08]
[1755175605632,0.14216157,196.88,196.86,1e-08]
[1755175605832,1.2071251,196.87,196.86,1e-08]
[1755175606337,0.5071251,196.87,196.86,1e-08]
[1755175606859,5.13784741,197.26,196.86,1e-08]
[1755175606860,0.5071251,196.89,196.86,1e-08]
[1755175607064,0.7,196.94,196.86,1e-08]
[1755175607275,66.8,197.0,196.86,1e-08]
[1755175607276,36.14216157,196.87,196.86,1e-08]
[1755175607435,37.34928667,196.87,196.86,1e-08]
[1755175607635,26.0,196.82,196.77,1e-08]
[1755175607835,1.2071251,196.81,196.73,0.2]
[1755175608461,0.5071251,196.81,196.73,0.2]
[1755175608644,0.5071251,196.86,196.74,0.71]
[1755175608832,3.55474303,196.92,196.74,0.71]
[1755175609043,0.5071251,196.91,196.75,15.53204172]
[1755175609259,0.5071251,196.91,196.76,0.71]
[1755175609435,1.2071251,196.91,196.76,0.71]
[1755175609639,27.2071251,196.91,196.76,0.71]
[1755175610168,0.7,196.9,196.73,0.2]
[1755175610462,0.5071251,196.89,196.73,0.2]
[1755175610660,0.5071251,196.89,196.74,0.71]
[1755175610871,26.0,196.86,196.73,0.2]
[1755175611160,1.2071251,196.85,196.73,25.4304627]
[1755175611464,0.5071251,196.85,196.74,0.06]
[1755175611770,0.5071251,196.85,196.74,15.76641137]
[1755175611957,36.52,197.01,196.74,15.76641137]
[1755175611958,0.5071251,196.9,196.75,0.14]
[1755175612144,0.7,196.94,196.75,0.14]
[1755175612339,0.5071251,196.93,196.76,0.14216157]
[1755175612668,0.5071251,196.93,196.77,0.28216157]
[1755175612872,0.5071251,196.96,196.78,0.16]
[1755175613044,2.031127,196.92,196.83,15.70641137]
[1755175613236,0.5071251,196.96,196.84,0.71]
[1755175613443,1.52256613,196.96,196.84,0.71]
[1755175613661,1.52256613,196.96,196.79,0.14216157]
[1755175613662,28.791333,196.95,196.78,0.71]
[1755175613964,28.791333,196.95,196.74,0.71]
[1755175613965,1.2071251,196.94,196.74,0.71]
[1755175614142,26.0,196.93,196.75,0.14216157]
[1755175614465,26.0,196.91,196.73,25.4304627]
[1755175614765,27.2071251,196.9,196.73,25.4304627]
[1755175614967,26.5071251,196.9,196.74,0.71]
[1755175615171,0.5071251,196.9,196.74,0.71]
[1755175615854,0.7,196.89,196.82,0.03]
[1755175616055,26.0,196.87,196.82,0.03]
[1755175616260,1.2071251,196.86,196.82,0.03]
[1755175616971,0.7,196.85,196.82,0.03]
[1755175617195,0.5071251,196.84,196.82,0.03]
[1755175617488,0.5071251,196.87,196.82,0.03]
[1755175617695,1.2071251,196.87,196.82,0.03]
[1755175617991,0.7,196.86,196.82,0.03]
[1755175618194,1.2071251,196.85,196.82,0.03]
[1755175618368,0.7,196.84,196.82,0.03]
[1755175618561,0.5071251,196.83,196.82,0.03]
[1755175618769,0.7,196.88,196.82,0.03]
[1755175618770,0.5071251,196.87,196.82,0.03]
[1755175618977,0.7,196.86,196.82,0.03]
[1755175619261,0.5071251,196.85,196.82,0.03]
[1755175619461,0.7,196.84,196.73,25.4304627]
[1755175619678,0.5071251,196.83,196.73,25.4304627]
[1755175619892,0.5071251,196.87,196.74,0.71]
[1755175620096,1.2071251,196.87,196.74,0.71]
[1755175620526,26.0,196.79,196.73,25.4304627]
[1755175620799,26.0,196.79,196.71,0.03]
[1755175620800,0.14216157,196.77,196.72,25.3390928]
[1755175621099,1.0771251,196.76,196.72,25.3390928]
[1755175621464,0.5071251,196.76,196.72,25.3390928]
[1755175621670,0.14216157,196.74,196.71,25.46946329]
[1755175621898,0.57,196.75,196.71,25.46946329]
[1755175621899,36.54,196.75,196.71,25.46946329]
[1755175623062,111.65,196.74,196.71,25.46946329]
[1755175623298,45.43,196.74,196.71,25.46946329]
[1755175623468,36.54,196.75,196.71,25.46946329]
[1755175623668,96.48,196.74,196.57,25.81019639]
[1755175623877,0.14216157,196.73,196.57,25.81019639]
[1755175624192,45.57216157,196.73,196.54,25.00962421]
[1755175624379,0.14216157,196.73,196.54,25.00962421]
[1755175624575,36.54,196.75,196.53,0.64]
[1755175624576,36.54,196.75,196.56,25.8139236]
[1755175624775,30.28,196.73,196.56,25.8139236]
[1755175624975,36.54,196.75,196.54,25.00962421]
[1755175625176,66.18,196.74,196.56,35.8139236]
[1755175625399,66.18,196.74,196.56,25.8139236]
[1755175625694,66.18,196.74,196.58,25.85437121]
[1755175625884,39.19322506,196.75,196.59,0.77216157]
[1755175626067,15.15,196.88,196.64,25.10341076]
[1755175626268,66.16,196.87,196.66,25.42675884]
[1755175626478,2.65211246,196.84,196.68,25.71357377]
[1755175626670,96.44,196.87,196.7,25.89791132]
[1755175626869,0.14216157,196.84,196.65,25.16472198]
[1755175627069,15.15,196.81,196.6,25.25294866]
[1755175627270,71.43,196.75,196.6,25.25294866]
[1755175627501,2.65230762,196.85,196.54,25.08962421]
[1755175627502,0.14216157,196.73,196.54,25.08962421]
[1755175627802,30.28,196.75,196.54,25.08962421]
[1755175628023,30.28,196.73,196.54,25.00962421]
[1755175628178,66.12,196.74,196.54,25.00962421]
[1755175628372,3.39801807,196.73,196.54,25.00962421]
[1755175628973,6.45329988,196.73,196.54,25.00962421]
[1755175629282,2.65,196.54,196.29,0.67]
[1755175629602,2.65,196.54,196.36,0.96094522]
[1755175629905,2.65,196.54,196.38,2.84488245]
[1755175630092,0.14216157,196.53,196.38,2.84488245]
[1755175630401,2.65,196.54,196.4,3.24704394]
[1755175630582,0.14216157,196.53,196.39,0.67]
[1755175630785,2.65,196.54,196.4,3.34704394]
[1755175630979,2.65,196.54,196.41,0.66]
[1755175631176,0.14216157,196.53,196.29,10.0]
[1755175631378,0.14216157,196.49,196.34,0.67]
[1755175631687,26.0,196.5,196.34,0.67]
[1755175631881,26.0,196.5,196.36,10.0]
[1755175632102,2.65,196.54,196.4,10.0]
[1755175632298,2.65,196.54,196.41,10.67]
[1755175632472,2.65,196.54,196.42,0.67]
[1755175633499,2.65,196.54,196.35,0.03]
[1755175633697,2.65,196.54,196.35,0.7]
[1755175634183,2.65,196.54,196.37,0.03]
[1755175634389,2.65,196.54,196.38,0.67]
[1755175634574,2.65,196.54,196.41,10.0]
[1755175634768,65.98,196.7,196.43,10.0]
[1755175635097,25.6242387,196.85,196.49,10.0]
[1755175635401,15.15,196.78,196.53,10.0]
[1755175635573,2.653497,196.75,196.59,10.0]
[1755175635774,2.653497,196.75,196.61,10.0]
[1755175635979,2.653497,196.75,196.62,0.67]
[1755175636284,17.7969825,196.75,196.62,0.67]
[1755175636699,17.7969825,196.75,196.58,0.67]
[1755175637074,0.14216157,196.71,196.58,0.67]
[1755175637397,0.14216157,196.71,196.54,0.67]
[1755175637596,0.14216157,196.71,196.33,10.0]
[1755175637597,26.0,196.56,196.46,25.42366509]
[1755175637802,10.0,196.64,196.49,22.23685352]
[1755175638102,10.0,196.64,196.46,0.50900946]
[1755175638103,10.0,196.73,196.59,22.23685352]
[1755175638403,10.0,196.7,196.6,0.03]
[1755175638611,2.653497,196.75,196.6,0.03]
[1755175638909,10.0,196.67,196.6,0.03]
[1755175639120,15.1434855,196.63,196.6,0.03]
[1755175639303,10.0,196.61,196.6,0.03]
[1755175640191,10.50932056,196.62,196.6,0.7]
[1755175640395,26.0,196.61,196.6,0.03]
[1755175640712,15.1434855,196.63,196.6,0.03]
[1755175640713,25.1434855,196.63,196.6,0.03]
[1755175640897,10.50932056,196.62,196.6,0.03]
[1755175641089,10.0,196.61,196.6,0.03]
[1755175641601,10.80216157,196.61,196.6,0.03]
[1755175642019,11.31148213,196.61,196.6,0.03]
[1755175642191,11.16932056,196.61,196.6,0.03]
[1755175642686,10.0,196.49,196.47,0.67]
[1755175642889,10.0,196.49,196.48,0.67]
[1755175642890,26.0,196.49,196.48,0.67]
[1755175643189,10.50932056,196.49,196.33,25.71783498]
[1755175643389,26.0,196.43,196.33,25.71783498]
[1755175643589,26.0,196.42,196.35,25.6470126]
[1755175643789,10.0,196.41,196.36,0.67]
[1755175643984,26.0,196.38,196.36,0.67]
[1755175644519,26.0,196.41,196.36,0.67]
[1755175644697,26.0,196.41,196.37,0.67]
[1755175644893,0.50932056,196.4,196.38,0.67]
[1755175645194,0.66,196.49,196.19,36.6]
[1755175645195,15.1134855,196.39,196.32,25.99195734]
[1755175645423,15.1134855,196.39,196.29,47.76571409]
[1755175645617,15.1134855,196.39,196.29,26.03831087]
[1755175645810,15.1134855,196.39,196.31,25.99778512]
[1755175646122,15.1134855,196.39,196.35,25.6470126]
[1755175646325,15.1134855,196.39,196.36,0.67]
[1755175646790,15.1134855,196.39,196.37,0.67]
[1755175646988,15.1134855,196.39,196.38,0.67]
[1755175648097,15.1134855,196.39,196.38,0.81216157]
[1755175648328,15.0234855,196.39,196.38,23.04901509]
[1755175648510,14.8213855,196.39,196.38,103.01216157]
[1755175648709,14.8213855,196.39,196.38,151.24901509]
[1755175648894,13.4613855,196.39,196.38,151.24901509]
[1755175649097,13.4613855,196.39,196.38,125.24901509]
[1755175649325,13.4613855,196.39,196.38,103.01216157]
[1755175649532,13.4613855,196.39,196.38,125.24901509]
[1755175649833,13.4613855,196.39,196.38,103.01216157]
[1755175650000,13.4613855,196.39,196.38,125.24901509]
[1755175650189,13.4613855,196.39,196.38,103.01216157]
[1755175650391,13.3192855,196.39,196.38,151.24901509]
[1755175650693,0.71,196.69,196.41,26.0]
[1755175650896,0.50932056,196.73,196.52,5.08848976]
[1755175651094,10.0,196.71,196.61,22.23685352]
[1755175651310,2.653497,196.75,196.62,0.50859525]
[1755175651539,0.77,196.78,196.62,0.50859525]
[1755175651540,0.56932056,196.78,196.69,0.14216157]
[1755175651699,0.06,196.78,196.7,87.71685352]
[1755175652227,0.06,196.78,196.7,65.48]
[1755175652732,0.06,196.78,196.71,22.37901509]
[1755175652907,0.06,196.78,196.71,0.14216157]
[1755175653113,0.06,196.78,196.73,22.37901509]
[1755175653317,0.06,196.78,196.7,65.9883884]
[1755175653610,0.06,196.78,196.71,0.14216157]
[1755175653827,0.06,196.78,196.73,22.23685352]
[1755175653999,0.06,196.78,196.71,0.14216157]
[1755175654000,0.06,196.78,196.71,0.50836256]
[1755175654202,0.06,196.78,196.69,31.74]
[1755175654401,0.06,196.78,196.62,36.6]
[1755175654402,26.0,196.73,196.68,31.74]
[1755175654765,26.0,196.73,196.58,0.50869874]
[1755175654766,0.71,196.72,196.57,36.6]
[1755175655046,26.0,196.63,196.54,65.34]
[1755175655231,0.50932056,196.62,196.54,65.34]
[1755175655417,26.0,196.67,196.55,0.50877639]
[1755175655619,26.0,196.67,196.58,22.23685352]
[1755175655930,26.0,196.65,196.55,22.23685352]
[1755175656243,26.0,196.65,196.54,65.34]
[1755175656407,26.0,196.66,196.54,65.34]
[1755175656605,26.0,196.71,196.62,22.23685352]
[1755175656811,1.21932056,196.73,196.62,22.23685352]
[1755175657116,26.0,196.71,196.59,22.23685352]
[1755175657335,0.71,196.73,196.62,0.14216157]
[1755175657540,0.50932056,196.74,196.63,22.23685352]
[1755175657743,1.21932056,196.77,196.64,22.74539705]
[1755175658043,0.50932056,196.77,196.67,22.23685352]
[1755175658255,0.50932056,196.77,196.68,65.22]
[1755175658614,10.0,196.75,196.68,65.22]
[1755175658818,0.06,196.78,196.68,65.22]
[1755175658819,1.21932056,196.74,196.68,65.22]
[1755175659320,26.0,196.69,196.49,5.5982481]
[1755175659528,0.50932056,196.68,196.56,22.23685352]
[1755175659742,26.0,196.66,196.54,22.23685352]
[1755175659916,26.0,196.66,196.56,22.23685352]
[1755175660113,26.0,196.66,196.58,22.23685352]
[1755175660424,0.71,196.72,196.61,0.14216157]
[1755175660616,0.50932056,196.75,196.61,0.65078269]
[1755175660812,0.71,196.76,196.65,22.23685352]
[1755175661022,0.50932056,196.75,196.61,0.65078269]
[1755175661337,0.50932056,196.75,196.65,22.23685352]
[1755175661531,0.50932056,196.75,196.61,0.14216157]
[1755175661730,36.0,196.73,196.55,65.16]
[1755175662041,26.0,196.65,196.55,65.16]
[1755175662266,26.0,196.63,196.55,65.16]
[1755175662538,1.21932056,196.64,196.55,65.16]
[1755175662713,26.0,196.67,196.56,22.23685352]
[1755175662919,0.50932056,196.66,196.56,22.23685352]
[1755175663143,26.0,196.67,196.55,65.16]
[1755175663144,0.71,196.68,196.6,22.23685352]
[1755175663439,0.71,196.72,196.6,22.23685352]
[1755175663640,1.21932056,196.72,196.62,22.23685352]
[1755175663819,1.21932056,196.72,196.57,0.65088619]
[1755175663820,0.71,196.72,196.64,22.23685352]
[1755175664140,0.71,196.72,196.57,0.65088619]
[1755175664327,10.0,196.69,196.55,65.16]
[1755175664528,1.21932056,196.68,196.56,22.23685352]
[1755175664737,27.21932056,196.68,196.56,22.37901509]
[1755175664949,26.0,196.65,196.54,0.03]
[1755175665126,0.14216157,196.77,196.54,0.03]
[1755175665127,26.0,196.61,196.54,64.99]
[1755175665522,26.0,196.6,196.54,64.99]
[1755175665742,26.0,196.58,196.54,64.99]
[1755175666042,0.71,196.57,196.54,64.99]
[1755175666243,10.71,196.62,196.54,64.99]
[1755175666423,0.50932056,196.61,196.54,64.99]
[1755175666616,26.0,196.55,196.54,64.99]
[1755175666944,26.0,196.58,196.54,64.99]
[1755175667117,15.39807957,196.68,196.54,64.99]
[1755175667118,0.71,196.57,196.54,64.99]
[1755175667318,0.50932056,196.59,196.54,64.99]
[1755175667319,26.0,196.58,196.54,64.99]
[1755175667518,0.71,196.56,196.54,64.99]
[1755175667743,1.21932056,196.55,196.54,64.99]
[1755175668050,27.21932056,196.55,196.54,64.99]
[1755175668544,26.71,196.55,196.54,64.99]
[1755175668715,26.71,196.55,196.49,25.12257259]
[1755175669664,36.50932056,196.54,196.49,25.12257259]
[1755175669862,0.71,196.53,196.49,25.12257259]
[1755175670062,10.50932056,196.52,196.49,25.12257259]
[1755175670369,10.71,196.51,196.49,25.12257259]
[1755175670557,11.21932056,196.5,196.48,0.03]
[1755175670733,10.0,196.46,196.38,64.76]
[1755175670939,0.50932056,196.45,196.38,64.76]
[1755175671268,0.71,196.46,196.39,25.48881939]
[1755175672068,0.71,196.46,196.34,28.55084177]
[1755175672233,0.14216157,196.45,196.34,28.55084177]
[1755175672441,0.71,196.44,196.34,28.55084177]
[1755175673493,0.71,196.44,196.34,25.89722156]
[1755175674630,0.71,196.44,196.35,25.74406111]
[1755175674831,0.71,196.44,196.32,64.72]
[1755175674832,0.14216157,196.43,196.33,25.54253051]
[1755175675156,0.14216157,196.41,196.3,0.03]
[1755175675331,0.71,196.4,196.31,25.33093147]
[1755175675841,0.71,196.4,196.31,89.93093147]
[1755175677839,0.71,196.4,196.31,25.33093147]
[1755175678762,0.71,196.44,196.32,22.23685352]
[1755175678967,0.71,196.44,196.31,25.33093147]
[1755175680072,0.71,196.44,196.31,47.56778499]
[1755175680380,0.71,196.48,196.38,22.23685352]
[1755175680557,0.69,196.53,196.39,64.46]
[1755175680888,70.78809369,196.62,196.4,0.17216157]
[1755175681052,0.69,196.54,196.37,36.62]
[1755175681375,0.69,196.54,196.38,64.42]
[1755175682156,0.14216157,196.53,196.31,25.33093147]
[1755175682373,0.69,196.52,196.37,22.23685352]
[1755175682784,0.14216157,196.51,196.31,25.33093147]
[1755175683071,26.0,196.57,196.37,0.03]
[1755175683072,0.14216157,196.49,196.37,0.03]
[1755175683276,0.69,196.48,196.37,0.03]
[1755175683479,0.69,196.48,196.38,22.23685352]
[1755175683681,0.69,196.48,196.37,0.03]
[1755175684160,0.14216157,196.47,196.37,0.03]
[1755175684484,0.14216157,196.45,196.37,0.03]
[1755175684653,0.14216157,196.43,196.33,25.54253051]
[1755175684870,0.14216157,196.41,196.25,64.28]
[1755175685070,0.14216157,196.39,196.26,25.43556267]
[1755175685297,0.69,196.38,196.26,25.43556267]
[1755175685474,26.0,196.35,196.26,25.43556267]
[1755175685670,26.0,196.35,196.14,25.31883171]
[1755175685973,26.0,196.35,196.16,25.83801311]
[1755175686172,26.0,196.35,196.16,90.07801311]
[1755175686384,26.0,196.35,196.18,25.03553183]
[1755175686702,26.0,196.35,196.23,25.15777757]
[1755175686868,2.65754767,196.43,196.23,25.15777757]
[1755175687068,15.15,196.55,196.29,25.76231103]
[1755175687376,15.276116,196.43,196.36,22.23685352]
[1755175687587,0.06,196.59,196.36,0.71]
[1755175687771,0.69,196.47,196.33,25.54253051]
[1755175687972,0.69,196.47,196.34,64.18]
[1755175688173,0.14216157,196.46,196.25,25.34705983]
[1755175688388,0.14216157,196.44,196.25,25.34705983]
[1755175688716,0.69,196.45,196.21,25.64819355]
[1755175688717,0.14216157,196.42,196.21,25.64819355]
[1755175688874,0.69,196.41,196.21,25.64819355]
[1755175689073,0.14216157,196.4,196.21,25.64819355]
[1755175689395,0.14216157,196.38,196.21,25.64819355]
[1755175689588,0.69,196.37,196.21,25.64819355]
[1755175689778,0.69,196.37,196.24,25.21050951]
[1755175690102,26.0,196.47,196.26,25.43556267]
[1755175690274,0.69,196.41,196.27,25.38280376]
[1755175690595,0.69,196.41,196.28,25.70752061]
[1755175690777,0.69,196.41,196.25,25.34705983]
[1755175690970,0.69,196.41,196.24,0.71]
[1755175690971,0.14216157,196.4,196.2,0.03]
[1755175691300,0.14216157,196.4,196.16,25.83801311]
[1755175691301,0.14216157,196.35,196.16,25.83801311]
[1755175691594,26.0,196.36,196.16,25.83801311]
[1755175691801,15.15,196.36,196.16,48.07486663]
[1755175692096,26.0,196.45,196.2,25.82576606]
[1755175692290,18.58141168,196.44,196.21,22.94685352]
[1755175692596,26.0,196.41,196.22,26.09329819]
[1755175692797,15.270673,196.5,196.24,25.21050951]
[1755175693101,26.0,196.47,196.26,25.43556267]
[1755175693401,15.15,196.49,196.26,25.43556267]
[1755175693587,0.14216157,196.41,196.19,25.77653208]
[1755175693781,0.14216157,196.38,196.19,25.77653208]
[1755175694000,41.15,196.39,196.19,25.77653208]
[1755175694001,0.14216157,196.36,196.19,25.77653208]
[1755175694306,0.69,196.35,196.22,25.38329819]
[1755175694483,0.69,196.39,196.27,22.23685352]
[1755175694683,0.69,196.39,196.27,25.38280376]
[1755175694883,0.69,196.39,196.26,25.43556267]
[1755175695507,0.69,196.39,196.28,25.70752061]
[1755175695680,0.69,196.43,196.3,25.93969597]
[1755175695891,15.270673,196.5,196.32,40.76215574]
[1755175695892,0.69,196.48,196.32,40.76215574]
[1755175696092,0.69,196.48,196.33,25.58253051]
[1755175696399,0.69,196.49,196.38,15.17844767]
[1755175696623,0.69,196.49,196.38,63.88]
[1755175696909,0.69,196.49,196.33,89.38253051]
[1755175697114,26.0,196.47,196.33,89.38253051]
[1755175697276,0.69,196.46,196.33,25.54253051]
[1755175697605,0.69,196.46,196.34,0.05]
[1755175697976,0.69,196.46,196.31,63.84]
[1755175697977,0.69,196.46,196.31,25.33093147]
[1755175698175,0.69,196.46,196.33,25.54253051]
[1755175699188,0.14216157,196.45,196.33,25.54253051]
[1755175699404,0.14216157,196.45,196.32,0.71]
[1755175699405,0.14216157,196.43,196.32,25.58370807]
[1755175699619,0.14216157,196.41,196.3,25.93969597]
[1755175699835,0.69,196.4,196.27,25.42280376]
[1755175700131,0.14216157,196.39,196.23,25.15777757]
[1755175700304,0.14216157,196.37,196.23,25.15777757]
[1755175700694,0.14216157,196.37,196.18,25.03553183]
[1755175700695,0.14216157,196.35,196.18,25.03553183]
[1755175700908,0.14216157,196.35,196.2,25.82576606]
[1755175701113,26.0,196.4,196.2,25.82576606]
[1755175701411,15.15,196.42,196.18,25.03553183]
[1755175701412,3.43196139,196.39,196.18,25.03553183]
[1755175701618,2.65808563,196.42,196.22,25.38329819]
[1755175701819,26.0,196.45,196.22,25.38329819]
[1755175701820,29.43253791,196.41,196.22,25.38329819]
[1755175701988,26.0,196.39,196.22,25.38329819]
[1755175702190,3.43180582,196.38,196.18,25.03553183]
[1755175702390,26.0,196.41,196.21,25.64819355]
[1755175702596,3.43349297,196.4,196.21,25.64819355]
[1755175702789,29.43349297,196.4,196.21,25.64819355]
[1755175703000,0.14216157,196.36,196.21,25.64819355]
[1755175703211,0.69,196.35,196.21,25.64819355]
[1755175703414,0.69,196.35,196.18,25.03553183]
[1755175703808,0.69,196.35,196.2,25.82576606]
[1755175704018,0.69,196.35,196.22,25.38329819]
[1755175704192,0.69,196.35,196.22,0.71]
[1755175704393,0.69,196.35,196.23,25.15777757]
[1755175704732,0.69,196.35,196.18,25.74553183]
[1755175704895,0.69,196.35,196.2,25.82576606]
[1755175705091,0.69,196.35,196.21,0.71]
[1755175705518,0.69,196.4,196.24,25.21050951]
[1755175705695,0.69,196.4,196.26,25.43556267]